[Event "Austrian Championship 2022"]
[Site "Vienna"]
[Date "2022.08.14"]
[Round "3.10"]
[White "Shengelia, David"]
[Black "Trkulja, Zoran"]
[Result "1-0"]
[ECO "E50"]
[WhiteElo "2462"]
[BlackElo "2111"]
[Annotator "TA"]
[PlyCount "91"]
[EventDate "2022.08.12"]
[EventType "swiss"]
[EventCountry "AUT"]
[SourceTitle "playchess.com"]
[Source "ChessBase"]
[SourceQuality "1"]
[TimeControl "40/5400+30:1800+30"]

{[%evp 11,91,-18,18,22,27,18,31,12,20,0,59,82,60,54,65,81,90,96,90,104,94,94,94,94,93,89,97,85,86,75,84,73,95,56,66,59,77,45,58,53,77,64,77,54,63,69,71,60,59,63,66,64,79,65,68,64,566,551,1135,1100,11533,11533,5575,5418,29975,29976,29976,29977,29977,29978,29978,29979,29979,29980,29982,29983,29983,29984,29984,29985,29984,29985]} 1. d4 {[%emt 0:00:02]} Nf6 {[%emt 0:02:36]} 2. c4 {[%emt 0:00:36]} e6 {[%emt 0:00:08]} 3. Nc3 {[%emt 0:00:11]} Bb4 {[%emt 0:00:45]} 4. e3 {[%emt 0:00:25]} O-O {[%emt 0:01:53]} 5. Nf3 {[%emt 0:00:33]} d6 {[%emt 0:01:00]} 6. Bd3 {[%emt 0:01:21]} Nc6 {[%emt 0:01:14]} (6... e5 $5 {[%cal Re5e4]} 7. Be2 (7. dxe5 dxe5 8. Nxe5 Qd6 $11) 7... Nc6 $11) 7. Bd2 {[%emt 0:10:47] E50: Nimzo-Indian: Rubinstein: 4...0-0 5 Nf3.} e5 {[%emt 0:09:17]} 8. d5 {[%emt 0:02:07]} Ne7 {[%emt 0:03:13]} 9. Qc2 {[%emt 0:05:53] White is slightly better.} Ng6 {[%emt 0:09:05]} 10. h4 {[%emt 0:07:13]} Nh5 {[%emt 0:10:01] [#]} ({Black should try} 10... h6 $11) 11. Ng5 $146 {[%emt 0:13:08]} ({Predecessor:} 11. O-O-O f5 12. Be2 Nf6 13. h5 Ne7 14. Ng5 c6 15. h6 g6 16. f4 cxd5 17. Nxd5 Bxd2+ 18. Qxd2 Nexd5 19. cxd5 {1-0 (40) Friedemann,G-Becker,A Buenos Aires 1939}) 11... f5 {[%emt 0:06:15]} 12. g4 {[%emt 0:24:53]} e4 {[%emt 0:04:17]} 13. Bxe4 {[%emt 0:00:11]} fxe4 {[%emt 0:00:31]} 14. gxh5 {[%emt 0:00:02]} Nxh4 {[%emt 0:03:25]} 15. Ncxe4 {[%emt 0:01:51] Pair of Knights!} Bxd2+ {[%emt 0:02:35]} 16. Qxd2 {[%emt 0:00:20]} h6 {[%emt 0:10:22]} 17. Rxh4 {[%emt 0:02:23][%cal Od2d4] aiming for Qd4!} hxg5 {[%emt 0:05:18]} 18. Rh2 {[%emt 0:02:24] White is much more active.} Bf5 {[%emt 0:13:34]} 19. Qd4 {[%emt 0:05:13]} Bxe4 {[%emt 0:08:22]} 20. Qxe4 {[%emt 0:00:28]} Qf6 {[%emt 0:00:06]} 21. O-O-O {[%emt 0:00:23]} Rae8 {[%emt 0:00:04]} 22. Qg4 {[%emt 0:10:21]} Re5 {[%emt 0:02:16]} 23. Rg2 {[%emt 0:02:22]} Rfe8 {[%emt 0:02:06]} 24. Rd4 {[%emt 0:01:33]} Rf5 {[%emt 0:02:04]} 25. Rd2 {[%emt 0:02:01]} Rfe5 {[%emt 0:01:27]} 26. a3 {[%emt 0:00:38]} a6 {[%emt 0:00:36]} 27. Qd1 {[%emt 0:04:27]} b5 {[%emt 0:00:26]} 28. cxb5 {[%emt 0:00:33]} axb5 {[%emt 0:00:06]} 29. Qb3 {[%emt 0:01:37]} Rb8 {[%emt 0:00:35]} 30. Rg4 {[%emt 0:00:32]} Rf5 {[%emt 0:00:21]} 31. Kb1 {[%emt 0:00:53]} Rxf2 {[%emt 0:01:21]} 32. Rxf2 {[%emt 0:00:06]} Qxf2 {[%emt 0:00:04]} 33. Rxg5 {[%emt 0:00:31][%mdl 4096] Endgame Threatens to win with h6. KQR-KQR} Re8 $2 {[%emt 0:00:39][%mdl 8192] Loses the game.} ({Better is} 33... Qh4 $14 34. Rg1 Qxh5) 34. h6 $1 $18 {[%emt 0:00:46]} ({Weaker is} 34. Qc3 Qf7 $16) 34... Rxe3 {[%emt 0:00:44]} 35. Rxg7+ {[%emt 0:00:33]} Kf8 {[%emt 0:00:43]} 36. Qxb5 {[%emt 0:00:28]} Qf5+ {[%emt 0:00:20]} 37. Ka2 {[%emt 0:00:09]} Re1 {[%emt 0:00:24]} 38. Qb8+ {[%emt 0:00:34] White mates.} Re8 {[%emt 0:00:06] [#]} 39. Rg8+ $3 {[%emt 0:00:38][%mdl 512]} Kxg8 {[%emt 0:00:06]} 40. Qxe8+ {[%emt 0:00:02] KQ-KQ} Kh7 {[%emt 0:00:12]} 41. Qe7+ {[%emt 0:30:47]} Kxh6 {[%emt 0:30:20]} 42. Qe6+ {[%emt 0:00:16]} Qxe6 {[%emt 0:00:08]} 43. dxe6 {[%emt 0:00:03]} Kg6 {[%emt 0:00:06] [#]} 44. a4 $1 {[%emt 0:00:03][%cal Ba3a4,Ba4a5,Ba5a6][%mdl 32]} Kf6 {[%emt 0:00:04]} 45. a5 {[%emt 0:00:03]} Kxe6 {[%emt 0:00:05]} 46. a6 {[%emt 0:00:02] Weighted Error Value: White=0.04 (flawless) /Black=0.47} 1-0

[Event "Austrian Championship 2022"]
[Site "Vienna"]
[Date "2022.08.14"]
[Round "3.11"]
[White "Morgunov, Marc"]
[Black "Miazhynski, Yuri"]
[Result "1-0"]
[ECO "B11"]
[WhiteElo "2376"]
[BlackElo "2166"]
[Annotator "TA"]
[PlyCount "85"]
[EventDate "2022.08.12"]
[EventType "swiss"]
[EventCountry "AUT"]
[SourceTitle "playchess.com"]
[Source "ChessBase"]
[SourceQuality "1"]
[TimeControl "40/5400+30:1800+30"]

{[%evp 10,85,34,22,25,29,20,0,40,25,28,25,31,31,20,27,25,27,28,14,19,-10,43,38,40,45,55,47,45,45,43,32,42,35,42,40,45,42,60,53,74,68,82,67,132,119,228,172,172,169,172,172,168,167,166,158,204,205,255,187,447,447,447,393,393,393,733,673,6461,7442,6299,2207,29980,29981,29981,29981,29976,29964]} 1. e4 {[%emt 0:00:03]} c6 {[%emt 0:00:38]} 2. Nc3 {[%emt 0:00:17]} d5 {[%emt 0:00:07]} 3. Nf3 {[%emt 0:00:04]} dxe4 {[%emt 0:00:05]} 4. Nxe4 {[%emt 0:00:04]} Nf6 {[%emt 0:00:06]} 5. Qe2 {[%emt 0:00:02]} Nxe4 {[%emt 0:00:18]} 6. Qxe4 {[%emt 0:00:06]} Qd5 {[%emt 0:00:09] B11: Caro-Kann: Two Knights Variation.} 7. Qf4 {[%emt 0:00:04]} Qf5 {[%emt 0:00:17]} 8. Qe3 {[%emt 0:00:04]} Qe6 {[%emt 0:05:39] The position is equal.} 9. b3 {[%emt 0:00:04]} Qxe3+ {[%emt 0:01:25]} 10. fxe3 {[%emt 0:00:07]} Bf5 {[%emt 0:00:50]} 11. Bb2 {[%emt 0:00:44]} a5 {[%emt 0:00:21] [#]} 12. d3 $146 {[%emt 0:07:17]} ({Predecessor:} 12. Be2 e6 13. Rf1 Nd7 14. O-O-O a4 15. Nh4 Bg6 16. Kb1 f6 17. Nxg6 hxg6 18. h3 {½-½ (98) Savchenko,B (2581)-Goryachkina,A (2504) Sochi 2019}) 12... a4 {[%emt 0:02:31]} 13. e4 {[%emt 0:04:08]} Bg6 {[%emt 0:17:07]} 14. h4 {[%emt 0:06:12] [#] Hoping for h5.} Bh5 {[%emt 0:03:58]} 15. Ne5 {[%emt 0:02:34]} Nd7 {[%emt 0:01:40]} (15... e6 $1 $11) 16. g4 $1 $14 {[%emt 0:01:45]} Nxe5 {[%emt 0:01:25]} 17. gxh5 {[%emt 0:00:09]} Nd7 {[%emt 0:08:10]} 18. O-O-O {[%emt 0:09:04]} e6 {[%emt 0:10:40]} 19. Kb1 {[%emt 0:01:00]} Rg8 {[%emt 0:07:08]} 20. Be2 {[%emt 0:04:32]} Be7 {[%emt 0:11:11]} 21. d4 {[%emt 0:07:06]} axb3 {[%emt 0:14:27]} 22. axb3 {[%emt 0:00:54]} Nf6 {[%emt 0:00:15]} 23. Bf3 {[%emt 0:05:02]} g6 {[%emt 0:00:44]} 24. hxg6 {[%emt 0:00:19]} hxg6 {[%emt 0:13:19]} 25. c4 {[%emt 0:02:29] White leaves nothing to chance now.} Nd7 {[%emt 0:00:00]} 26. e5 {[%emt 0:01:57]} Nb6 {[%emt 0:00:00]} ({Black should play} 26... O-O-O $14) 27. h5 {[%emt 0:03:48]} O-O-O {[%emt 0:00:00]} (27... gxh5 $16 {might work better.} 28. Rxh5 Rg3) 28. hxg6 {[%emt 0:04:29]} Rxg6 {[%emt 0:00:00]} 29. Rh7 {[%emt 0:00:09] Against Rg7} Rg3 {[%emt 0:00:00]} 30. Rxf7 {[%emt 0:00:20]} Rf8 {[%emt 0:00:00]} 31. Rxf8+ {[%emt 0:02:32]} Bxf8 {[%emt 0:00:00]} 32. Rf1 {[%emt 0:00:05][%cal Of3c6]} Bh6 {[%emt 0:00:00]} (32... Bb4 $16 33. Bc1 Kd7) 33. Kc2 $18 {[%emt 0:01:30]} Be3 {[%emt 0:00:32]} 34. Kd3 {[%emt 0:00:07]} Rg1 $2 {[%emt 0:00:29] [#]} (34... Bh6 35. Ke4 Rh3) 35. Rxg1 {[%emt 0:00:03]} ({Not} 35. Kxe3 Rxf1 36. Be4 Kd7 $15) 35... Bxg1 {[%emt 0:00:04][%mdl 4096] Endgame KBB-KBN} 36. Bg4 {[%emt 0:00:03]} Kd7 {[%emt 0:00:06]} 37. Ba3 {[%emt 0:00:04]} Na8 $2 {[%emt 0:02:56]} (37... Bf2 38. Ke4 Na8) 38. d5 {[%emt 0:00:21]} Nc7 {[%emt 0:00:30]} 39. dxe6+ {[%emt 0:00:15]} Nxe6 {[%emt 0:00:12]} 40. Bd6 {[%emt 0:00:08]} (40. Ke4 $142 Bf2 41. Bd6) 40... b6 {[%emt 0:01:12]} 41. b4 {[%emt 0:32:02][%cal Bb3b4,Bb4b5][%mdl 32] White mates.} Bf2 {[%emt 0:04:25]} 42. Ke4 {[%emt 0:00:00]} Bh4 {[%emt 0:00:07]} 43. b5 {[%emt 0:00:00] Weighted Error Value: White=0.10 (very precise) /Black=0.44} 1-0

[Event "Austrian Championship 2022"]
[Site "Vienna"]
[Date "2022.08.14"]
[Round "3.12"]
[White "Albadri Abd Al Sattar"]
[Black "Schroll, Gerhard"]
[Result "1/2-1/2"]
[ECO "A83"]
[WhiteElo "2161"]
[BlackElo "2281"]
[Annotator "TA"]
[PlyCount "42"]
[EventDate "2022.08.12"]
[EventType "swiss"]
[EventCountry "AUT"]
[SourceTitle "playchess.com"]
[Source "ChessBase"]
[SourceQuality "1"]
[TimeControl "40/5400+30:1800+30"]

{[%evp 10,42,16,8,30,32,35,47,54,51,35,31,52,0,42,50,47,41,75,68,42,59,65,71,85,18,70,57,96,-12,10,10,16,-26,-23]} 1. d4 {[%emt 0:01:00][%cal Bd2d4,Bd4d5][%mdl 32]} f5 {[%emt 0:00:21]} 2. e4 {[%emt 0:01:49]} fxe4 {[%emt 0:00:12]} 3. Nc3 {[%emt 0:00:08]} Nf6 {[%emt 0:03:25]} 4. Bg5 {[%emt 0:01:07]} Nc6 {[%emt 0:00:38]} 5. d5 {[%emt 0:01:08]} Ne5 {[%emt 0:00:02]} 6. Qe2 {[%emt 0:00:17]} Nf7 {[%emt 0:00:43] A83: Dutch Defence: Staunton Gambit with 3 Nc3 Nf6 4 Bg5.} 7. Bxf6 $1 {[%emt 0:00:11] The main line 7.Bxf6 scores better than 7.h4.} exf6 {[%emt 0:02:42]} 8. Nxe4 {[%emt 0:01:15][%cal Re4d6] [#]} Be7 {[%emt 0:05:47] Inhibits Nd6+. White is slightly better.} 9. d6 $1 {[%emt 0:02:05]} cxd6 {[%emt 0:00:05]} 10. O-O-O {[%emt 0:00:07]} O-O {[%emt 0:00:54]} 11. Nf3 {[%emt 0:05:01] [#]} (11. Nc3 $14) 11... f5 $146 {[%emt 0:09:28]} ({Predecessor:} 11... b6 12. Nd4 Bb7 13. Nf5 Re8 14. Qg4 Bf8 15. Bc4 Re6 16. Nexd6 Qc7 17. Nxf7 Kxf7 18. Rhe1 Rc8 19. Rxd7+ Qxd7 20. Bxe6+ Qxe6 21. Nd6+ Bxd6 22. Qxe6+ Kg6 {1-0 (22) Ezat,M (2408)-Brilej,J (2218) Chess.com INT 2020}) 12. Nc3 {[%emt 0:00:33][%mdl 1024] White has compensation.} b6 {[%emt 0:04:04]} 13. Nd4 {[%emt 0:05:20]} g6 {[%emt 0:02:27]} 14. Qf3 {[%emt 0:03:26] Prevents Bb7.} (14. h4 $5) 14... Rb8 {[%emt 0:01:29]} 15. Bc4 {[%emt 0:00:14][%cal Oh2h4]} Bb7 {[%emt 0:02:51]} 16. Bd5 $36 {[%emt 0:00:02][%mdl 2048] White is really pushing. 0x0.001b8431c4cfdp-1022s more active pieces. The black rooks are badly placed.} Bxd5 {[%emt 0:01:12]} 17. Qxd5 {[%emt 0:01:39]} (17. Nxd5 $16 {[%cal Oh2h4]} Bh4 18. g3 (18. Kb1 Ne5 $14)) 17... a6 {[%emt 0:03:46]} (17... Bf6 $11) 18. f4 $14 {[%emt 0:00:58][%cal Bf2f4,Bf4f5][%mdl 32]} b5 {[%emt 0:02:05][%cal Bb6b5,Bb5b4][%mdl 32]} 19. g4 {[%emt 0:02:34]} (19. Qf3 $16) 19... b4 {[%emt 0:02:33]} 20. Nce2 {[%emt 0:00:52] Pair of Knights!} fxg4 {[%emt 0:00:19]} 21. f5 {[%emt 0:00:15]} Bh4 {[%emt 0:13:44] Weighted Error Value: White=0.25 (precise) /Black=0.21 (precise)} 1/2-1/2

[Event "Austrian Championship 2022"]
[Site "Vienna"]
[Date "2022.08.14"]
[Round "3.14"]
[White "Schnepp, Gunnar"]
[Black "Pilshofer, Paul"]
[Result "0-1"]
[ECO "D85"]
[WhiteElo "2265"]
[BlackElo "2223"]
[Annotator "TA"]
[PlyCount "162"]
[EventDate "2022.08.12"]
[EventType "swiss"]
[EventCountry "AUT"]
[SourceTitle "playchess.com"]
[Source "ChessBase"]
[SourceQuality "1"]
[TimeControl "40/5400+30:1800+30"]

{[%evp 18,162,40,18,45,35,38,47,46,36,65,75,70,51,61,52,48,0,0,-38,-38,-56,114,125,246,298,249,200,352,0,0,0,0,-266,0,-551,-544,-509,-120,-132,-133,-122,-113,-117,-118,-140,-112,-139,-99,-317,-309,-295,-211,-196,-186,-325,-332,-304,-237,-233,0,-309,0,-221,-202,-364,-365,-328,-86,-86,-86,-91,-91,-91,-92,-165,-166,-166,-157,-159,-150,-309,-300,-288,-279,-252,-224,-376,-348,-351,-328,-686,-636,-593,-552,-489,-429,-1212,-1097,-938,-766,-29957,-29953,-6920,-6548,-29963,-29964,-29964,-29966,-29966,-29964,-29963,-2498,-29966,-29966,-29977,-8,-29964,-8,-9,-9,-29964,-29965,-29967,-29968,-29967,-29968,-29968,-29969,-29970,-29970,-29971,-29972,-29972,-29973,-29973,-29974,-29974,-29975,-29975,-29976,-29976,-29977,-29976,-29977,-29971,-4622]} 1. Nf3 {[%emt 0:01:22]} Nf6 {[%emt 0:00:38]} 2. c4 {[%emt 0:00:13]} g6 {[%emt 0:02:06]} 3. Nc3 {[%emt 0:00:20]} d5 {[%emt 0:00:34]} 4. cxd5 {[%emt 0:00:35]} Nxd5 {[%emt 0:01:17]} 5. e4 {[%emt 0:00:50]} Nxc3 {[%emt 0:02:47]} 6. bxc3 {[%emt 0:00:03]} Bg7 {[%emt 0:00:15]} 7. Be2 {[%emt 0:06:56]} c5 {[%emt 0:16:13]} 8. d4 {[%emt 0:08:13]} O-O {[%emt 1:10:40]} 9. O-O {[%emt 0:04:05]} b6 {[%emt 0:00:00]} 10. Bg5 {[%emt 0:04:34]} Qc7 {[%emt 0:00:00] D85: Exchange Grünfeld: Unusual White 7th moves and lines with 7 Nf3.} 11. Qd2 {[%emt 0:05:17]} Ba6 {[%emt 0:00:00]} 12. Bxa6 {[%emt 0:10:22]} Nxa6 {[%emt 0:00:00] White is slightly better.} 13. Bh6 {[%emt 0:13:38] [#]} Rfd8 $146 {[%emt 0:00:00]} ({Predecessor:} 13... Rac8 14. Bxg7 Kxg7 15. Rac1 Rfd8 16. h4 Qd6 17. h5 h6 18. hxg6 fxg6 19. g3 Qf6 {1-0 (64) Husek,Z-Brestak,J Nova Bana 1983}) 14. Bxg7 {[%emt 0:00:37]} Kxg7 {[%emt 0:00:00]} 15. d5 {[%emt 0:02:24]} c4 {[%emt 0:00:00]} 16. Qd4+ {[%emt 0:05:12]} f6 {[%emt 0:00:00]} 17. Ng5 {[%emt 0:11:20]} (17. Qe3 $14) 17... Nc5 $11 {[%emt 0:00:00]} 18. Rab1 {[%emt 0:01:48][%cal Od4c5]} Rac8 {[%emt 0:00:00]} (18... e5 19. Qxc5 $1 Qxc5 20. Ne6+ Kh6 21. Nxc5 bxc5 22. Rb5 $16) 19. f4 {[%emt 0:02:28][%cal Bf2f4,Bf4e5,Be5e6][%mdl 32]} e5 $2 {[%emt 0:02:32]} (19... e6 $15 {stays ahead.}) 20. fxe5 $16 {[%emt 0:02:29]} fxg5 {[%emt 0:01:16]} (20... fxe5 $16 21. Qxc4 (21. Qf2 Rf8 $11) 21... Rf8) 21. d6 $1 $18 {[%emt 0:01:42]} Qc6 {[%emt 0:00:42]} (21... Qb7 $2 22. e6+ Kh6 23. e7) 22. e6+ $1 {[%emt 0:01:42]} Kg8 $2 {[%emt 0:01:15]} (22... Kh6 23. Rf3 g4 24. Qe3+ Kh5) 23. Qf6 $2 {[%emt 0:12:37]} (23. e7 $1 $18 {[%cal Re7d8]} Ne6 24. exd8=N Rxd8 25. Qf6) 23... Rf8 {[%emt 0:00:29]} (23... Nxe4 $2 24. Qf7+ Kh8 25. d7 $18) (23... Qxd6 $5 24. Qf7+ Kh8 25. Qf6+ Kg8 26. Qf7+ Kh8 27. Qf6+ Kg8 $11) 24. Qe7 {[%emt 0:00:26] Strongly threatening d7.} Rce8 {[%emt 0:01:13]} (24... Nxe4 $2 25. d7 Qc5+ 26. Qxc5 Nxc5 27. dxc8=N Rxc8 28. Rf7 $18) 25. Rxf8+ {[%emt 0:02:56]} Rxf8 {[%emt 0:00:00] Really sharp!} 26. d7 $2 {[%emt 0:00:35][%mdl 8192]} (26. Rf1 $11 {and White is okay.} Qe8 27. Qxe8 Rxe8 28. d7 Nxd7 29. exd7) 26... Nxe6 $19 {[%emt 0:00:37]} 27. Kh1 {[%emt 0:00:41]} Rf7 $2 {[%emt 0:00:48]} (27... Nd8 $19 {is more deadly.} 28. Kg1 Qe6 29. Qxg5 Qxd7) 28. d8=Q+ $17 {[%emt 0:00:21]} Nxd8 {[%emt 0:00:13]} 29. Qxd8+ {[%emt 0:00:01][%mdl 4096] Endgame KQR-KQR} Kg7 {[%emt 0:00:15]} 30. Qd4+ {[%emt 0:00:25]} Kh6 {[%emt 0:00:41]} 31. h3 {[%emt 0:00:59]} Rd7 $36 {[%emt 0:00:40][%mdl 2048] Black is in control.} 32. Qe5 {[%emt 0:00:35]} Qd6 {[%emt 0:00:22]} 33. Qb5 {[%emt 0:00:35]} (33. Qxd6 $17 {only move.} Rxd6 34. Rb4) 33... Qe6 $19 {[%emt 0:00:21]} 34. Re1 {[%emt 0:00:25]} Rd3 {[%emt 0:00:14] ...g4 is the strong threat.} 35. Qb4 {[%emt 0:00:23] Black must now prevent Qf8+.} Qf7 {[%emt 0:01:04][%cal Og5g4] Against Qf8+} 36. e5 {[%emt 0:00:42]} (36. Kg1 $142) 36... Qf2 {[%emt 0:00:21][%csl LRa2,LRe1]} 37. Rg1 {[%emt 0:00:19]} Qf5 {[%emt 0:00:19][%cal Od3h3]} (37... Qxa2 $2 38. Qf8+ Kh5 39. g4+ Kh4 40. Qh6#) 38. Re1 {[%emt 0:00:21]} Qf2 {[%emt 0:00:54][%csl LRa2,LRe1]} 39. Rg1 {[%emt 0:00:03]} Qf5 {[%emt 0:00:41][%cal Od3h3]} (39... Qxa2 $2 40. Qf8+ Kh5 41. g4+ Kh4 42. Qh6#) 40. Re1 {[%emt 0:00:55]} g4 {[%emt 0:00:29][%cal Bg5g4,Bg4h3][%mdl 32]} 41. Qxc4 $2 {[%emt 0:11:41]} (41. hxg4 Qf2 42. g5+ Kxg5 43. Qb1) 41... gxh3 {[%emt 0:14:31][%cal Of5f2]} 42. Qh4+ {[%emt 0:01:04]} Qh5 $2 {[%emt 0:00:48]} (42... Kg7 $19 {has better winning chances.} 43. Qe7+ Qf7 44. Qxf7+ Kxf7 45. Rf1+ Ke7) 43. Qxh5+ $17 {[%emt 0:02:53]} ({Wrong is} 43. Qf4+ $2 Qg5 44. Qxg5+ Kxg5 $19) 43... Kxh5 {[%emt 0:00:43] KR-KR} 44. e6 {[%emt 0:00:30]} Rd8 $1 {[%emt 0:03:43] aiming for ...hxg2+.} (44... Rxc3 $2 45. e7 hxg2+ 46. Kxg2 Rc2+ 47. Kg1 $18) 45. gxh3 {[%emt 0:00:41]} Re8 $1 {[%emt 0:01:15]} 46. a4 {[%emt 0:09:32]} (46. c4 $17 {might work better.}) 46... Kg5 $19 {[%emt 0:09:33]} 47. a5 {[%emt 0:00:19]} Kf6 {[%emt 0:01:10]} ({And not} 47... bxa5 48. Kg2 $17) 48. axb6 {[%emt 0:00:11]} axb6 {[%emt 0:00:02]} 49. Rf1+ $2 {[%emt 0:00:17]} (49. Re4 $17 {was called for.}) 49... Kxe6 {[%emt 0:00:12]} 50. Rb1 {[%emt 0:00:03]} Rb8 {[%emt 0:00:18]} 51. Rb5 {[%emt 0:00:11]} Kd6 {[%emt 0:00:31]} 52. h4 $2 {[%emt 0:00:29]} (52. Kg2) 52... Kc6 {[%emt 0:00:35]} 53. Re5 {[%emt 0:01:34]} Rd8 {[%emt 0:00:18]} 54. h5 $2 {[%emt 0:03:19]} (54. Kg2 Rd2+ 55. Kf1) 54... Rd5 {[%emt 0:00:39]} 55. Re6+ {[%emt 0:00:01]} Rd6 {[%emt 0:00:59]} 56. Re7 {[%emt 0:00:39]} h6 {[%emt 0:01:16]} 57. hxg6 {[%emt 0:01:33]} (57. Kg2 $142 gxh5 58. Re5) 57... Rxg6 {[%emt 0:00:01]} 58. Re5 {[%emt 0:00:08]} Rg3 {[%emt 0:01:34]} 59. Rh5 {[%emt 0:01:40]} Rxc3 {[%emt 0:00:14]} 60. Kg2 {[%emt 0:00:04]} Re3 {[%emt 0:00:28] And now ...Re6 would win.} ({Not} 60... Rc2+ 61. Kf1 $17) 61. Rxh6+ {[%emt 0:00:31]} Kb5 {[%emt 0:00:08]} 62. Kf2 {[%emt 0:00:07]} Re5 {[%emt 0:00:23]} 63. Rh1 {[%emt 0:01:15]} Kc6 {[%emt 0:01:28]} 64. Rc1+ {[%emt 0:00:20]} Kb7 {[%emt 0:00:25]} (64... Kd6 $142 65. Kf3 b5 66. Rb1 Kc5 67. Rc1+ Kd4 68. Rb1 Kc4 69. Rc1+ Kd3 70. Kf4 Re7 71. Rb1 Kc4 72. Rc1+ Kd4 73. Rh1 Rf7+ 74. Kg5 b4 75. Rh4+ Kc3 76. Rh6 Rb7 77. Rc6+ Kd4 78. Rd6+ Ke3 79. Re6+ Kd2 80. Rh6 b3 81. Rh2+ Kc3 82. Rh3+ Kc4 83. Rh4+ Kd3 84. Rh3+ Kd4 85. Rh4+ Ke5 86. Rh5 b2 87. Kg6+ Ke6 88. Rh1 b1=Q+ 89. Rxb1 Rxb1 90. Kg5 Rb4 91. Kg6 Rb5 92. Kg7 Rg5+ 93. Kh6 Kf6 94. Kh7 Rh5+ 95. Kg8 Rh1 96. Kf8 Rh8#) 65. Rc3 {[%emt 0:02:26]} b5 {[%emt 0:00:37]} 66. Re3 {[%emt 0:00:32]} Rd5 $2 {[%emt 0:00:34]} (66... Rxe3 67. Kxe3 Kb6 68. Kd4 Ka5 69. Kc3 Ka4 70. Kb2 Kb4 71. Ka2 Kc3 72. Ka3 b4+ 73. Ka2 Kc2 74. Ka1 Kb3 75. Kb1 Ka3 76. Kc2 b3+ 77. Kc1 Ka2 78. Kd2 b2 79. Ke3 b1=Q 80. Kf4 Qg6 81. Kf3 Qg5 82. Kf2 Kb3 83. Kf3 Kb4 84. Ke2 Qf4 85. Ke1 Kb3 86. Ke2 Kc3 87. Ke1 Kd3 88. Kd1 Qf1#) 67. Ke2 $2 {[%emt 0:00:03][%mdl 8192]} (67. Re6 $11) 67... Kc6 $2 {[%emt 0:00:20]} (67... Kb6 {mates} 68. Rg3 Kc5 69. Rh3 Kc4 70. Rh7 b4 71. Rc7+ Kb3 72. Ke3 Ka2 73. Rh7 b3 74. Ra7+ Kb1 75. Ke4 Rb5 76. Kd3 b2 77. Kd2 Rd5+ 78. Ke3 Kc2 79. Rc7+ Kb3 80. Rh7 b1=Q 81. Rb7+ Kc2 82. Rxb1 Kxb1 83. Ke4 Rh5 84. Kd4 Kc2 85. Kc4 Kd2 86. Kd4 Ra5 87. Ke4 Kc3 88. Ke3 Ra4 89. Ke2 Re4+ 90. Kf3 Kd3 91. Kf2 Re3 92. Kf1 Rf3+ 93. Kg1 Ke2 94. Kg2 Rd3 95. Kh1 Rg3 96. Kh2 Kf2 97. Kh1 Rh3#) 68. Rd3 $1 $11 {[%emt 0:00:20]} Rc5 {[%emt 0:00:34] ( -> ...b4)} 69. Rd4 $2 {[%emt 0:00:55][%mdl 8192] [#]} (69. Rd1 $11) 69... Kb6 $1 {[%emt 0:00:25] Black mates.} 70. Kd2 {[%emt 0:01:51]} Ka5 {[%emt 0:00:13]} 71. Rd8 {[%emt 0:00:50]} Ka4 {[%emt 0:00:14]} 72. Ra8+ {[%emt 0:00:06]} Kb3 {[%emt 0:00:02]} 73. Ra5 {[%emt 0:00:46]} Rc2+ {[%emt 0:00:44]} 74. Kd1 {[%emt 0:00:30] [#]} b4 $1 {[%emt 0:00:13][%cal Bb5b4,Bb4b3][%mdl 32]} 75. Rb5 {[%emt 0:00:33]} Rc8 {[%emt 0:00:14]} 76. Rb7 {[%emt 0:00:10]} Ka3 {[%emt 0:00:28]} 77. Ra7+ {[%emt 0:00:53]} Kb2 {[%emt 0:00:02]} 78. Rd7 {[%emt 0:00:13]} b3 {[%emt 0:00:19]} 79. Rb7 {[%emt 0:00:39]} Rd8+ {[%emt 0:00:03]} 80. Ke2 {[%emt 0:00:08]} Kc2 {[%emt 0:00:18]} 81. Rc7+ {[%emt 0:00:13]} Kb1 {[%emt 0:00:03] Weighted Error Value: White=0.67/Black=0.54} 0-1